Cogmind - Beta 14 @@@ ROGUE MODE // 2024.09.08 @ 12:38:20 Player: Finestep Result: Destroyed by CA-SJJ(R) with Subdweller Machine Gun Performance ------------- Evolutions (0) 0 Regions Visited (2) 400 Robots Destroyed (40) 200 Value Destroyed (830) 830 Prototype IDs (11) 220 Alien Tech Used (0) 0 Bonus (0) 0 TOTAL SCORE: 1650 Bonus ------- None Cogmind --------- Core Integrity 0/250 Matter 288/300 Energy 96/100 System Corruption 0% Temperature Cool (0) Movement Treading (160) Location -10/Subcaves Parts ------- > --- POWER (1) -------- Subdweller Power Source > --- PROPULSION (2) --- Light Treads Light Treads > --- UTILITY (2) ------ Large Storage Unit Makeshift Light Armor Plating > --- WEAPON (2) ------- Light Assault Rifle Battle Cannon > --- INVENTORY (15) --- Light Treads Subdweller Monowheel Transport Network Coupler Makeshift Hacking Suite Grenade Launcher Grenade Launcher Mining Laser Multitool Peak State ------------ > --- POWER ------------ Subdweller Power Source > --- PROPULSION ------- Light Treads Spiked Treads > --- UTILITY ---------- Large Storage Unit Makeshift Light Armor Plating > --- WEAPON ----------- Light Assault Rifle Battle Cannon > --- INVENTORY -------- Light Treads Light Treads Arachnoskeleton Subdweller Monowheel Transport Network Coupler Makeshift Hacking Suite Subdweller Beam Cannon Subdweller Beam Cannon Subdweller Machine Gun Grenade Launcher Grenade Launcher Mining Laser Multitool [Rating: 17] Favorites ----------- Power Subdweller Power Source Engine Subdweller Power Source Propulsion Light Treads Treads Light Treads Utility Large Storage Unit Device Subdweller Optics Storage Large Storage Unit Protection Makeshift Light Armor Plating Weapon Light Assault Rifle Energy Gun Small Laser Energy Cannon Subdweller Beam Cannon Ballistic Gun Light Assault Rifle Ballistic Cannon Battle Cannon Launcher Grenade Launcher Special Weapon Mining Laser Build | -11 -10 -10 ------- Run | Yrd Mat Sub Slots Evolved . | . . . Power . | . . . Propulsion . | . . . Utility . | . . . Weapon . | . . . Parts Attached 55 | 7 16 32 Power 7 | 1 2 4 Engine 7 | 1 2 4 Core . | . . . Reactor . | . . . Propulsion 9 | 2 2 5 Treads 9 | 2 2 5 Leg . | . . . Wheel . | . . . Hover . | . . . Flight . | . . . Utility 11 | 2 3 6 Device 7 | 1 1 5 Storage 3 | 1 2 . Processor . | . . . Hackware . | . . . Protection 1 | . . 1 Artifact . | . . . Weapon 28 | 2 9 17 Energy Gun 2 | 2 . . Energy Cannon 1 | . . 1 Ballistic Gun 12 | . 6 6 Ballistic Cannon 3 | . . 3 Launcher 3 | . 1 2 Special Weapon 7 | . 2 5 Impact Weapon . | . . . Slashing Weapon . | . . . Piercing Weapon . | . . . Special Melee Weapon . | . . . Unidentified Prototypes . | . . . Parts Lost 8 | . . 8 Power 2 | . . 2 Propulsion 2 | . . 2 Utility 1 | . . 1 Weapon 3 | . . 3 Highest Loss Streak 3 | . . 3 To Critical Strikes 1 | . . 1 Average Slot Usage (%) 98 | . 100 97 Engine 12 | . 14 12 Treads 27 | . 28 27 Device 12 | . 14 12 Storage 14 | . 14 14 Energy Gun 2 | . 8 . Ballistic Gun 18 | . 18 18 Ballistic Cannon 1 | . . 2 Special Weapon 3 | . . 5 Peak Build Rating 17 | 7 8 17 Average Rating 10 | 4 7 12 On Entrance 5 | . 7 8 Naked Turns . | . . . Heaviest Build 38 | 14 27 38 Greatest Support 40 | 40 40 40 Greatest Overweight (x) 3 | 3 . . Average Overweight (x) . | 1 . . Largest Inventory Capacity 15 | 8 15 15 Average Capacity 13 | 7 11 15 Most Carried 15 | 4 13 15 Average Carried 12 | 2 9 14 Final Capacity 15 | 8 15 15 Final Carried 13 | 4 13 8 Class Distribution -------------------- 61% | Mutant 33% | Scavenger-Mutant 4% | Derelict-Mutant Dominant Class ---------------- Scavenger-Mutant | -10/Materials Mutant | -10/Subcaves Resources | -11 -10 -10 ----------- Run | Yrd Mat Sub Matter Collected 1589 | 210 563 816 Remotely . | . . . Salvage Created 1673 | 98 913 662 Parts 110 | 6 57 47 Haulers Intercepted 2 | . 2 . Recyclers Shooed 4 | . 4 . Parts Field Recycled . | . . . Retrieved Matter . | . . . Parts Self-Destructed 14 | . . 14 Prevented . | . . . Kills | -11 -10 -10 ------- Run | Yrd Mat Sub Combat Hostiles Destroyed 28 | . 14 14 Guns 24 | . 14 10 Cannons 4 | . . 4 Classes Destroyed 11 | 2 5 4 Tunneler 1 | 1 . . Hauler 2 | . 2 . Recycler 5 | 1 4 . Operator 1 | . 1 . Watcher 3 | . 3 . Swarmer 13 | . 9 4 Grunt 5 | . 5 . Sentry 1 | . . 1 Artisan 1 | . . 1 Cobbler 1 | . . 1 Subdweller 9 | . . 9 Best Kill Streak 5 | 2 5 3 Combat Bots Only 5 | . 5 3 Max Kills in Single Turn 1 | 1 1 1 Gunslinging . | . . . Exploded . | . . . Melee . | . . . Uniques/NPCs Destroyed . | . . . Combat | -11 -10 -10 -------- Run | Yrd Mat Sub Hostile Shots Fired 163 | . 69 94 Missed 36 | . 17 19 Damage Taken 1973 | . 476 1497 Core 268 | . 72 196 Absorbed by Shields . | . . . Core Remaining (%) 100 | 100 . . Volleys Fired 216 | 3 77 136 Largest 2 | 2 2 2 Hottest 120 | 90 120 119 Shots Fired 395 | 6 153 236 Gun 333 | 6 150 177 Cannon 27 | . . 27 Launcher 9 | . 1 8 Special 26 | . 2 24 Kinetic 294 | . 91 203 Thermal 92 | 6 61 25 Explosive 9 | . 1 8 Electromagnetic . | . . . Robot Hit Streak 29 | 4 10 29 Robot Miss Streak 8 | . 8 4 Penetration Max . | . . . Secondary Targets 3 | . . 3 Max Gunslinging Chain 1 | . . 1 Shots Hit Robots 243 | 4 83 156 Core Hits 84 | 3 40 41 Critical Kills . | . . . Critical Parts Destroyed . | . . . Critical Strikes 4 | . . 4 Destroy 2 | . . 2 Blast 2 | . . 2 Melee Attacks . | . . . Impact . | . . . Slashing . | . . . Piercing . | . . . Sneak Attacks . | . . . Combat Hostiles . | . . . Follow-up Attacks . | . . . Damage Inflicted 2695 | 46 878 1771 Guns 2252 | 46 861 1345 Cannons 426 | . . 426 Explosions 14 | . 14 . Melee . | . . . Ramming 3 | . 3 . Kinetic 2170 | . 428 1742 Thermal 508 | 46 433 29 Explosive 14 | . 14 . Electromagnetic . | . . . Impact . | . . . Slashing . | . . . Piercing . | . . . Highest Corruption . | . . . Average Corruption . | . . . Corruption Purged . | . . . Corruption Blocked . | . . . Overload Shots . | . . . Overflow Damage . | . . . Projectiles . | . . . Explosions . | . . . Melee . | . . . Knockbacks 4 | . . 4 Impact . | . . . Kinetic 4 | . . 4 Secondary . | . . . Self-Inflicted Damage 2 | . . 2 Shots 1 | . . 1 Rammed 1 | . 1 . Targets Rammed 1 | . 1 . Kicked . | . . . Crushed . | . . . Highest Temperature 174 | 60 174 . Average Temperature 53 | 26 60 . Received Heat Transfer 339 | . 114 225 Siege Activations . | . . . Robots Corrupted . | . . . Combat Hostiles . | . . . Parts Fried . | . . . Impact Corruptions . | . . . Robots Melted . | . . . Combat Hostiles . | . . . Parts Melted 3 | . 2 1 Heat Transferred 1254 | 112 1105 37 Parts Sabotaged . | . . . Parts Stolen . | . . . Parts Stripped . | . . . Power Chain Reactions . | . . . Alert | -11 -10 -10 ------- Run | Yrd Mat Sub Peak Influence 356 | 10 356 . Initial 6 | . 6 . Average 201 | 3 211 . Maximum Alert Level 1 | . 1 . Low Security (%) 50 | 100 47 . Level 1 49 | . 52 . Level 2 . | . . . Level 3 . | . . . Level 4 . | . . . Level 5 . | . . . High Security . | . . . Max Security . | . . . Squads Dispatched 3 | . 3 . Investigation 2 | . 2 . Extermination . | . . . Reinforcement 1 | . 1 . Assault . | . . . Garrison . | . . . Intercept . | . . . Searches Triggered . | . . . Construction Impeded . | . . . Haulers Reinforced . | . . . Active Scanning Responses . | . . . Cargo Convoy Interrupts . | . . . Stealth | -11 -10 -10 --------- Run | Yrd Mat Sub Distress Signals 1 | . 1 . Communications Jammed . | . . . Distress Signals . | . . . Times Spotted 53 | . 35 18 Peak Tracking Total 5 | . 5 4 Tactical Retreats 8 | . 5 3 Traps | -11 -10 -10 ------- Run | Yrd Mat Sub Traps Triggered 4 | . . 4 Indirectly . | . . . Trap Hack Attempts . | . . . Triggered . | . . . Disarmed . | . . . Reprogrammed . | . . . Reused . | . . . Traps Extracted . | . . . Installed . | . . . Triggered . | . . . Machines | -11 -10 -10 ---------- Run | Yrd Mat Sub Machines Disabled 3 | . 2 1 Max in Single Turn 2 | . 2 1 Machines Repaired . | . . . Machines Dismantled . | . . . Machines Sabotaged . | . . . Overloaded Fab Kills . | . . . Hacking | -11 -10 -10 --------- Run | Yrd Mat Sub Machines Accessed 13 | . 9 4 Terminals 7 | . 7 . Fabricators . | . . . Repair Stations . | . . . Recycling Units 2 | . 2 . Scanalyzers . | . . . Garrison Access . | . . . Total Hacks 37 | . 30 7 Successful 20 | . 13 7 Failed 17 | . 17 . Catastrophic 1 | . 1 . Database Lockouts . | . . . Manual 8 | . 8 . Terminals 23 | . 23 . Fabricators . | . . . Repair Stations . | . . . Recycling Units 7 | . 7 . Scanalyzers . | . . . Garrison Access . | . . . Terminal Hacks 16 | . 9 7 Record 4 | . . 4 Part Schematic 1 | . 1 . Robot Schematic 1 | . 1 . Robot Analysis 3 | . 3 . Open Door 1 | . . 1 Unreport Threat 1 | . 1 . Locate Traps 1 | . 1 . Zone Layout 2 | . 2 . Derelict Proto ID Bank 1 | . . 1 Release Object 1 | . . 1 Fabricator Hacks . | . . . Repair Station Hacks . | . . . Recycling Unit Hacks 2 | . 2 . Retrieve Components 2 | . 2 . Scanalyzer . | . . . Garrison Access Hacks . | . . . Unauthorized Hacks 2 | . 2 . Terminals . | . . . Fabricators . | . . . Repair Stations . | . . . Recycling Units 2 | . 2 . Tunnel 2 | . 2 . Scanalyzers . | . . . Garrison Access . | . . . Data Cores Recovered . | . . . Used . | . . . Hacking Detections 7 | . 7 . Full Trace Events . | . . . Feedback Events . | . . . Feedback Blocked . | . . . Robot Schematics Acquired 1 | . 1 . Robots Built . | . . . Authchips . | . . . Time . | . . . Total Robot Build Rating . | . . . Part Schematics Acquired 1 | . 1 . Parts Built . | . . . Authchips . | . . . Time . | . . . Total Part Build Rating . | . . . Parts Repaired . | . . . Time . | . . . Parts Recycled . | . . . Recycled Matter . | . . . Retrieved Matter . | . . . Retrieved Components 10 | . 10 . Parts Scanalyzed . | . . . Part Schematics Acquired . | . . . Parts Damaged . | . . . Bothacking | -11 -10 -10 ------------ Run | Yrd Mat Sub Used RIF Installer . | . . . Robots Hacked . | . . . Non-combat . | . . . Combat . | . . . Robot Hacks Applied . | . . . Relay Couplers Released . | . . . Fabnet Peak Effective % . | . . . Robots Rewired . | . . . Allies Hacked . | . . . Hacks Repelled . | . . . Allies | -11 -10 -10 -------- Run | Yrd Mat Sub Total Allies . | . . . Largest Group . | . . . Highest-Rated Group . | . . . Highest-Rated Ally . | . . . Total Orders . | . . . Ally Attacks . | . . . Total Damage . | . . . Kills . | . . . Allies Corrupted . | . . . Allies Melted . | . . . Intel | -11 -10 -10 ------- Run | Yrd Mat Sub Robot Analysis Total 3 | . 3 . Derelict Logs Recovered 2 | . . 2 Drone Launches . | . . . Drone Recoveries . | . . . Exploration | -11 -10 -10 ------------- Run | Yrd Mat Sub Turns Passed 4919 | 81 1611 3227 Spaces Moved 2550 | 35 819 1696 Core 15 | 15 . . Treads 2535 | 20 819 1696 Legs . | . . . Wheels . | . . . Hover . | . . . Flight . | . . . Fastest Speed 50 | 50 160 160 Average Speed 160 | 167 160 160 Slowest Speed 200 | 200 160 160 Overloaded Moves . | . . . Propulsion Burnouts . | . . . Robots Hopped . | . . . Cave-ins Triggered . | . . . Exploration Rate (%) 55 | 6 93 68 Regions Visited 2 Branch Regions 1 Pre-discovered Areas 3 | . 2 1 Known Exits Taken . | . . . Unknown Exits Taken 2 | 1 1 . Scrap Searched 6 | . . 6 Spaces Dug 6 | . 6 . Terrain Destroyed 58 | . 13 45 Melee . | . . . Projectile 2 | . 1 1 AOE 56 | . 12 44 Terrain Rammed . | . . . Walls Destroyed . | . . . Machines Disabled . | . . . Actions | -11 -10 -10 --------- Run | Yrd Mat Sub Total 2970 | 49 977 1944 Wait 85 | . 42 43 Move 2548 | 34 818 1696 Hop . | . . . Pick Up 30 | 5 11 14 Fast Attach 15 | 6 3 6 Attach 6 | 1 . 5 Detach . | . . . Swap 34 | . 13 21 Drop 34 | . 12 22 Fire 216 | 3 77 136 Melee . | . . . Ram . | . . . Kick . | . . . Crush 1 | . 1 . Escape Stasis . | . . . Rewire . | . . . Trap . | . . . Miscellaneous 1 | . . 1 Route ------- -11/Scrapyard -10/Materials (discovered 5 exits: [*Mat x2] / [*Min x2] / *Sub) -10/Subcaves (discovered 2 exits: [*Mat] / [*Rec]) History --------- Turn | Location | Event 11 | -11/Scrapyard | Discovered new exit (range 16) 82 | -11/Scrapyard | Entered Materials 225 | -10/Materials | Discovered new exit (range 14) 316 | -10/Materials | Build established: Mutant 718 | -10/Materials | Discovered new exit (range 16) 907 | -10/Materials | Build established: Scavenger-Mutant 1132 | -10/Materials | Discovered new exit (range 6) 1308 | -10/Materials | Discovered new exit (range 12) 1682 | -10/Materials | Discovered new exit (range 8) 1693 | -10/Materials | Entered Subcaves 1756 | -10/Subcaves | Lost 3 parts (1p1n1u) 1787 | -10/Subcaves | Shifting Twisted Machinery released Mak. Flight Unit 1787 | -10/Subcaves | Shifting Twisted Machinery released Mak. Laser 1790 | -10/Subcaves | Core integrity fell below 50% 2008 | -10/Subcaves | Build established: Mutant 2103 | -10/Subcaves | Discovered new exit (range 11) 2648 | -10/Subcaves | Discovered new exit (range 11) 2724 | -10/Subcaves | Lost 3 parts (1p2w) 2915 | -10/Subcaves | Visited Clippyterm 2920 | -10/Subcaves | Learned Factory fabricator intel 2991 | -10/Subcaves | Shifting Twisted Machinery released Spk. Treads 3064 | -10/Subcaves | Shifting Twisted Machinery released Mak. Hacking Suite 3468 | -10/Subcaves | Learned 2 Materials zone layouts 3496 | -10/Subcaves | Visited 4L-MR0's lab 3518 | -10/Subcaves | Found Arachnoskeleton 4182 | -10/Subcaves | Released subatomizers from SUBCON Basin 4323 | -10/Subcaves | Build established: Scavenger-Mutant 4602 | -10/Subcaves | Disturbed a concealed Subdweller 4616 | -10/Subcaves | Core integrity fell below 20% 4902 | -10/Subcaves | Disturbed a concealed Subdweller 4920 | -10/Subcaves | Destroyed by CA-SJJ(R) with Subdweller Machine Gun Last Messages --------------- 04887_ Dropped Sub. Machine Gun. 04895_ Searching scrap... 04895_ Found Shrapnel Trap. 04895_ Found Humpback. 04895_ Found 41 Matter. 04896_ Acquired 23 matter. 04898_ Searching scrap... 04898_ Found Flamer. 04898_ Found 54 Matter. 04900_ Searching scrap... 04900_ Found Sub. Power Source. 04900_ Found 50 Matter. 04902_ CA-SJJ(R) angrily emerges from the Twisted Machinery. 04902_ CA-SJJ(R) knocked back. 04903_ Acquired 6 matter. 04903_ CA-SJJ(R): "SUBSUB!" 04905_ Acquired 6 matter. 04909_ CA-SJJ(R) affixes Scrap Shield Fragment to Scrap Shield. 04911_ Acquired 6 matter. 04915_ CA-SJJ(R) affixes Scrap Shield Fragment to Scrap Shield. Map ----- +----------------------------------------------------+ | ??????????## ### ##???????????? | | ???????????## ### ##?## #???????????? | | ????????????###?# ## ##### #???????????? | | ????????????????# ### ## ## ####???????????? | | ????????????????##### #####??????????????? | | ??????????????????## #?????##???????????? | | ?????????????????## ##???## ##??????????? | | ?????????????##### ###????# # #??????????? | | ????????????## ##??????## #??????????? | | ????????????# ##???????# ##?????????? | | ????????????# ##????????## #?????????? | | ????????????# ##?##?###### ##?????????? | | ????????????## ### ### #??????????? | | ?????????????## ## # #??????????? | | ??????????????# ## # ##??????????? | | ??????????????# ### ###???????????? | | ??????????????## ### #?????????????? | | ???????????????## #?????????????? | | ????????????????# #?????????????? | | ????????????????# = &[ ###?????????????? | | ????????????????## ## ]&& ##???????????????? | | ?????????????????###### % ] ##???????????????? | | ???????????????????# !% ## #???????????????? | | ????????????#??????# ####[ # #???????????????? | | ????????????# ?????# ##<<#!&## ##???????????????? | | ???????????## ???## #$<%@# #####????????????????? | | ???????????# ??# #<$%R &#????????????????????? | | ???????????# ## #<$<#% #????????????????????? | | ????????????# ##<##%%#????????????????????? | | ??????????????# ###%%%#????????????????????? | | ???????????????# ###????????????????????? | | ?????????????????#### #????????????????????? | | ??????????########### ### ???????????????? | | ##???????## ## # # ##?? #????????????? | | ######??# ##???? #???????????? | | ##?## ## ##?????# ####???????????? | | #?# ###### #??????? ##??????????????? | | # ### #???# #???????? #???????????????? | | ### ##??## #???????? #???????????????? | | ## #???### #???????? ???????????????? | | ?## < ###?????#% #????????? ??????????????? | | ??### ##?????? ##????????? ?????????????? | | ????## "#?????? ??????????? ?????????????? | | ?????### ####?????? ???????????? ????????????? | | ???????# ##?????????## ??????????????????????????? | | ???????# #???????????? "?????????????????????????? | | ??????? ???????????? "?????????????????????????? | | ?????? ????????????#"?????????????????????????? | | ?????### ??????????????????????????????????????? | | ???????# ??????????????????????????????????????? | +----------------------------------------------------+ Best States ------------- Heat Dissipation 35 Energy Generation 15 Energy Capacity 250 Matter Stores 300 Matter Capacity 300 Sight Range 21 Terrain Scan Density 10 Armor Coverage 100 Evasion (%) 40 Recoil Reduction 2 Item Schematics ----------------- Hcp. Storage Unit | -10/Materials | Hacked Robot Schematics ------------------ M-13 Machinist | -10/Materials | Hacked Fabricated ------------ Nothing Alien Tech Used ----------------- None Achievements -------------- None Challenges ------------ None Game ------ Seed LegHypercooledPenetrator Manual? 0 Play Time 00:25:02 Cumulative 694.4 hours Start 2024.09.08 @ 12:09:53 End 2024.09.08 @ 12:38:20 Sessions 1 Manual Loads 0 Difficulty Rogue Special Mode None Game No. 436 Rogue 436 Adventurer 0 Explorer 0 Win Type - Total 9 Types 6/0/1/1/1/0/0/0/0 Lore% 66 Gallery% 84 Achievement% 75 Wizard Run 0 Options --------- Layout 0 ASCII 0 Keyboard 0 Movement Mouse Keybinds 1 Fullscreen 2 Font 24/Smallcaps Map View 76x50 Zoom Use 0% Tactical HUD 1 Map Filters NONE Filters NONE Steam 1 RUN: 771b18c0-0d5e-4e6e-b424-48b6d6de4c1f